Workbook

Sheet INGRESO DE DATOS
B3: ARGENTINA
A8: COTIZACIÓN DE SEGURO MÉDICO
A10: 1. SELECCIONE EL PAIS : | C10: ARGENTINA
A13: 2. INGRESE LOS DATOS DEL PROPUESTO ASEGURADO :
C15: Nombre del Asegurado principal : | D15: NOMBRE Y APELLIDO
F17: Número de adultos en la póliza : | G17: 1 | I17: Número de hijos en la póliza : | J17: 0
F19: Edad del titular : | G19: 18 | I19: Edad de cónyuge : | J19: 18
A22: 3. INGRESE EL NOMBRE DE LA AGENCIA ASESORA :
C24: Nombre de la Agencia : | D24: AGENCIA
A27: 4. ESCOJA EL PRODUCTO PARA VISUALIZAR LA COTIZACION RESPECTIVA :

Sheet Bupa Flex
A10: Cotización de Seguro Médico - Bupa FLEX | E10: País: | F10: =+'INGRESO DE DATOS'!$C$10 -> ARGENTINA
E12: Nombre del asegurado : | F12: =+'INGRESO DE DATOS'!$D$15 -> NOMBRE Y APELLIDO
E14: Broker / Agente : | F14: =+'INGRESO DE DATOS'!$D$24 -> AGENCIA
G16: Número de adultos en la póliza: | H16: =+'INGRESO DE DATOS'!$G$17 -> 1 | J16: Edad de Titular : | K16: =+'INGRESO DE DATOS'!$G$19 -> 18
G18: Número hijos (menos 24 de años): | H18: =+'INGRESO DE DATOS'!$J$17 -> 0 | J18: Edad de Cónyuge: | K18: =+'INGRESO DE DATOS'!$J$19 -> 18
D20: Deducibles | F20: PLAN 2 | G20: PLAN 3 | H20: PLAN 4 | I20: PLAN 5 | J20: PLAN 6 | K20: PLAN 7
D21: Dentro o fuera del pais de residencia | F21: 500 | G21: 1000 | H21: 2000 | I21: 4000 | J21: 5000 | K21: 10000
D23: Tarifas Anuales
D24: Prima de Titular : | F24: =IF(OR($F10="CHILE",$F10="HAITI",$F10="HONDURAS"),VLOOKUP($K$16,Tablas!$A$6:$H$68,3,TRUE),IF(OR($F10="COSTA RICA",$F10="EL SALVADOR"),VLOOKUP($K$16,Tablas!$A$151:$H$213,3,TRUE),IF(OR($F10="BELIZE",$F10="GUYANA",$F10="NICARAGUA",$F10="SURINAME",$F10="URUGUAY",$F10="CARIBBEAN",$F10="PERU"),VLOOKUP($K$16,Tablas!$A$296:$H$358,3,TRUE),IF($F10="VENEZUELA",VLOOKUP($K$16,Tablas!$A$441:$H$503,3,TRUE),IF(OR($F10="ARGENTINA",$F10="COLOMBIA",$F10="PARAGUAY"),VLOOKUP($K$16,Tablas!$A$586:$H$648,3,TRUE),0))))) -> 2864 | G24: =IF(OR($F10="CHILE",$F10="HAITI",$F10="HONDURAS"),VLOOKUP($K$16,Tablas!$A$6:$H$68,4,TRUE),IF(OR($F10="COSTA RICA",$F10="EL SALVADOR"),VLOOKUP($K$16,Tablas!$A$151:$H$213,4,TRUE),IF(OR($F10="BELIZE",$F10="GUYANA",$F10="NICARAGUA",$F10="SURINAME",$F10="URUGUAY",$F10="CARIBBEAN",$F10="PERU"),VLOOKUP($K$16,Tablas!$A$296:$H$358,4,TRUE),IF($F10="VENEZUELA",VLOOKUP($K$16,Tablas!$A$441:$H$503,4,TRUE),IF(OR($F10="ARGENTINA",$F10="COLOMBIA",$F10="PARAGUAY"),VLOOKUP($K$16,Tablas!$A$586:$H$648,4,TRUE),0))))) -> 2605 | H24: =IF(OR($F10="CHILE",$F10="HAITI",$F10="HONDURAS"),VLOOKUP($K$16,Tablas!$A$6:$H$68,5,TRUE),IF(OR($F10="COSTA RICA",$F10="EL SALVADOR"),VLOOKUP($K$16,Tablas!$A$151:$H$213,5,TRUE),IF(OR($F10="BELIZE",$F10="GUYANA",$F10="NICARAGUA",$F10="SURINAME",$F10="URUGUAY",$F10="CARIBBEAN",$F10="PERU"),VLOOKUP($K$16,Tablas!$A$296:$H$358,5,TRUE),IF($F10="VENEZUELA",VLOOKUP($K$16,Tablas!$A$441:$H$503,5,TRUE),IF(OR($F10="ARGENTINA",$F10="COLOMBIA",$F10="PARAGUAY"),VLOOKUP($K$16,Tablas!$A$586:$H$648,5,TRUE),0))))) -> 2021 | I24: =IF(OR($F10="CHILE",$F10="HAITI",$F10="HONDURAS"),VLOOKUP($K$16,Tablas!$A$6:$H$68,6,TRUE),IF(OR($F10="COSTA RICA",$F10="EL SALVADOR"),VLOOKUP($K$16,Tablas!$A$151:$H$213,6,TRUE),IF(OR($F10="BELIZE",$F10="GUYANA",$F10="NICARAGUA",$F10="SURINAME",$F10="URUGUAY",$F10="CARIBBEAN",$F10="PERU"),VLOOKUP($K$16,Tablas!$A$296:$H$358,6,TRUE),IF($F10="VENEZUELA",VLOOKUP($K$16,Tablas!$A$441:$H$503,6,TRUE),IF(OR($F10="ARGENTINA",$F10="COLOMBIA",$F10="PARAGUAY"),VLOOKUP($K$16,Tablas!$A$586:$H$648,6,TRUE),0))))) -> 1713 | J24: =IF(OR($F10="CHILE",$F10="HAITI",$F10="HONDURAS"),VLOOKUP($K$16,Tablas!$A$6:$H$68,7,TRUE),IF(OR($F10="COSTA RICA",$F10="EL SALVADOR"),VLOOKUP($K$16,Tablas!$A$151:$H$213,7,TRUE),IF(OR($F10="BELIZE",$F10="GUYANA",$F10="NICARAGUA",$F10="SURINAME",$F10="URUGUAY",$F10="CARIBBEAN",$F10="PERU"),VLOOKUP($K$16,Tablas!$A$296:$H$358,7,TRUE),IF($F10="VENEZUELA",VLOOKUP($K$16,Tablas!$A$441:$H$503,7,TRUE),IF(OR($F10="ARGENTINA",$F10="COLOMBIA",$F10="PARAGUAY"),VLOOKUP($K$16,Tablas!$A$586:$H$648,7,TRUE),0))))) -> 1558 | K24: =IF(OR($F10="CHILE",$F10="HAITI",$F10="HONDURAS"),VLOOKUP($K$16,Tablas!$A$6:$H$68,8,TRUE),IF(OR($F10="COSTA RICA",$F10="EL SALVADOR"),VLOOKUP($K$16,Tablas!$A$151:$H$213,8,TRUE),IF(OR($F10="BELIZE",$F10="GUYANA",$F10="NICARAGUA",$F10="SURINAME",$F10="URUGUAY",$F10="CARIBBEAN",$F10="PERU"),VLOOKUP($K$16,Tablas!$A$296:$H$358,8,TRUE),IF($F10="VENEZUELA",VLOOKUP($K$16,Tablas!$A$441:$H$503,8,TRUE),IF(OR($F10="ARGENTINA",$F10="COLOMBIA",$F10="PARAGUAY"),VLOOKUP($K$16,Tablas!$A$586:$H$648,8,TRUE),0))))) -> 1347
D25: Prima de Cónyuge | F25: =IF($H$16=1,0,IF(OR($F10="CHILE",$F10="HAITI",$F10="HONDURAS"),VLOOKUP($K$18,Tablas!$A$6:$H$68,3,TRUE),IF(OR($F10="COSTA RICA",$F10="EL SALVADOR"),VLOOKUP($K$18,Tablas!$A$151:$H$213,3,TRUE),IF(OR($F10="BELIZE",$F10="GUYANA",$F10="NICARAGUA",$F10="SURINAME",$F10="URUGUAY",$F10="CARIBBEAN",$F10="PERU"),VLOOKUP($K$18,Tablas!$A$296:$H$358,3,TRUE),IF($F10="VENEZUELA",VLOOKUP($K$18,Tablas!$A$441:$H$503,3,TRUE),IF(OR($F10="ARGENTINA",$F10="COLOMBIA",$F10="PARAGUAY"),VLOOKUP($K$18,Tablas!$A$586:$H$648,3,TRUE),0)))))) -> 0 | G25: =IF($H$16=1,0,IF(OR($F10="CHILE",$F10="HAITI",$F10="HONDURAS"),VLOOKUP($K$18,Tablas!$A$6:$H$68,4,TRUE),IF(OR($F10="COSTA RICA",$F10="EL SALVADOR"),VLOOKUP($K$18,Tablas!$A$151:$H$213,4,TRUE),IF(OR($F10="BELIZE",$F10="GUYANA",$F10="NICARAGUA",$F10="SURINAME",$F10="URUGUAY",$F10="CARIBBEAN",$F10="PERU"),VLOOKUP($K$18,Tablas!$A$296:$H$358,4,TRUE),IF($F10="VENEZUELA",VLOOKUP($K$18,Tablas!$A$441:$H$503,4,TRUE),IF(OR($F10="ARGENTINA",$F10="COLOMBIA",$F10="PARAGUAY"),VLOOKUP($K$18,Tablas!$A$586:$H$648,4,TRUE),0)))))) -> 0 | H25: =IF($H$16=1,0,IF(OR($F10="CHILE",$F10="HAITI",$F10="HONDURAS"),VLOOKUP($K$18,Tablas!$A$6:$H$68,5,TRUE),IF(OR($F10="COSTA RICA",$F10="EL SALVADOR"),VLOOKUP($K$18,Tablas!$A$151:$H$213,5,TRUE),IF(OR($F10="BELIZE",$F10="GUYANA",$F10="NICARAGUA",$F10="SURINAME",$F10="URUGUAY",$F10="CARIBBEAN",$F10="PERU"),VLOOKUP($K$18,Tablas!$A$296:$H$358,5,TRUE),IF($F10="VENEZUELA",VLOOKUP($K$18,Tablas!$A$441:$H$503,5,TRUE),IF(OR($F10="ARGENTINA",$F10="COLOMBIA",$F10="PARAGUAY"),VLOOKUP($K$18,Tablas!$A$586:$H$648,5,TRUE),0)))))) -> 0 | I25: =IF($H$16=1,0,IF(OR($F10="CHILE",$F10="HAITI",$F10="HONDURAS"),VLOOKUP($K$18,Tablas!$A$6:$H$68,6,TRUE),IF(OR($F10="COSTA RICA",$F10="EL SALVADOR"),VLOOKUP($K$18,Tablas!$A$151:$H$213,6,TRUE),IF(OR($F10="BELIZE",$F10="GUYANA",$F10="NICARAGUA",$F10="SURINAME",$F10="URUGUAY",$F10="CARIBBEAN",$F10="PERU"),VLOOKUP($K$18,Tablas!$A$296:$H$358,6,TRUE),IF($F10="VENEZUELA",VLOOKUP($K$18,Tablas!$A$441:$H$503,6,TRUE),IF(OR($F10="ARGENTINA",$F10="COLOMBIA",$F10="PARAGUAY"),VLOOKUP($K$18,Tablas!$A$586:$H$648,6,TRUE),0)))))) -> 0 | J25: =IF($H$16=1,0,IF(OR($F10="CHILE",$F10="HAITI",$F10="HONDURAS"),VLOOKUP($K$18,Tablas!$A$6:$H$68,7,TRUE),IF(OR($F10="COSTA RICA",$F10="EL SALVADOR"),VLOOKUP($K$18,Tablas!$A$151:$H$213,7,TRUE),IF(OR($F10="BELIZE",$F10="GUYANA",$F10="NICARAGUA",$F10="SURINAME",$F10="URUGUAY",$F10="CARIBBEAN",$F10="PERU"),VLOOKUP($K$18,Tablas!$A$296:$H$358,7,TRUE),IF($F10="VENEZUELA",VLOOKUP($K$18,Tablas!$A$441:$H$503,7,TRUE),IF(OR($F10="ARGENTINA",$F10="COLOMBIA",$F10="PARAGUAY"),VLOOKUP($K$18,Tablas!$A$586:$H$648,7,TRUE),0)))))) -> 0 | K25: =IF($H$16=1,0,IF(OR($F10="CHILE",$F10="HAITI",$F10="HONDURAS"),VLOOKUP($K$18,Tablas!$A$6:$H$68,8,TRUE),IF(OR($F10="COSTA RICA",$F10="EL SALVADOR"),VLOOKUP($K$18,Tablas!$A$151:$H$213,8,TRUE),IF(OR($F10="BELIZE",$F10="GUYANA",$F10="NICARAGUA",$F10="SURINAME",$F10="URUGUAY",$F10="CARIBBEAN",$F10="PERU"),VLOOKUP($K$18,Tablas!$A$296:$H$358,8,TRUE),IF($F10="VENEZUELA",VLOOKUP($K$18,Tablas!$A$441:$H$503,8,TRUE),IF(OR($F10="ARGENTINA",$F10="COLOMBIA",$F10="PARAGUAY"),VLOOKUP($K$18,Tablas!$A$586:$H$648,8,TRUE),0)))))) -> 0
D26: Primas Hijos : | F26: =IF($H$18=0,0,IF(OR($F10="CHILE",$F10="HAITI",$F10="HONDURAS"),VLOOKUP($H$18,Tablas!$A$69:$H$71,3,TRUE),IF(OR($F10="COSTA RICA",$F10="EL SALVADOR"),VLOOKUP($H$18,Tablas!$A$214:$H$216,3,TRUE),IF(OR($F10="BELIZE",$F10="GUYANA",$F10="NICARAGUA",$F10="SURINAME",$F10="URUGUAY",$F10="CARIBBEAN",$F10="PERU"),VLOOKUP($H$18,Tablas!$A$359:$H$361,3,TRUE),IF($F10="VENEZUELA",VLOOKUP($H$18,Tablas!$A$504:$H$506,3,TRUE),IF(OR($F10="ARGENTINA",$F10="COLOMBIA",$F10="PARAGUAY"),VLOOKUP($H$18,Tablas!$A$649:$H$651,3,TRUE),0)))))) -> 0 | G26: =IF($H$18=0,0,IF(OR($F10="CHILE",$F10="HAITI",$F10="HONDURAS"),VLOOKUP($H$18,Tablas!$A$69:$H$71,4,TRUE),IF(OR($F10="COSTA RICA",$F10="EL SALVADOR"),VLOOKUP($H$18,Tablas!$A$214:$H$216,4,TRUE),IF(OR($F10="BELIZE",$F10="GUYANA",$F10="NICARAGUA",$F10="SURINAME",$F10="URUGUAY",$F10="CARIBBEAN",$F10="PERU"),VLOOKUP($H$18,Tablas!$A$359:$H$361,4,TRUE),IF($F10="VENEZUELA",VLOOKUP($H$18,Tablas!$A$504:$H$506,4,TRUE),IF(OR($F10="ARGENTINA",$F10="COLOMBIA",$F10="PARAGUAY"),VLOOKUP($H$18,Tablas!$A$649:$H$651,4,TRUE),0)))))) -> 0 | H26: =IF($H$18=0,0,IF(OR($F10="CHILE",$F10="HAITI",$F10="HONDURAS"),VLOOKUP($H$18,Tablas!$A$69:$H$71,5,TRUE),IF(OR($F10="COSTA RICA",$F10="EL SALVADOR"),VLOOKUP($H$18,Tablas!$A$214:$H$216,5,TRUE),IF(OR($F10="BELIZE",$F10="GUYANA",$F10="NICARAGUA",$F10="SURINAME",$F10="URUGUAY",$F10="CARIBBEAN",$F10="PERU"),VLOOKUP($H$18,Tablas!$A$359:$H$361,5,TRUE),IF($F10="VENEZUELA",VLOOKUP($H$18,Tablas!$A$504:$H$506,5,TRUE),IF(OR($F10="ARGENTINA",$F10="COLOMBIA",$F10="PARAGUAY"),VLOOKUP($H$18,Tablas!$A$649:$H$651,5,TRUE),0)))))) -> 0 | I26: =IF($H$18=0,0,IF(OR($F10="CHILE",$F10="HAITI",$F10="HONDURAS"),VLOOKUP($H$18,Tablas!$A$69:$H$71,6,TRUE),IF(OR($F10="COSTA RICA",$F10="EL SALVADOR"),VLOOKUP($H$18,Tablas!$A$214:$H$216,6,TRUE),IF(OR($F10="BELIZE",$F10="GUYANA",$F10="NICARAGUA",$F10="SURINAME",$F10="URUGUAY",$F10="CARIBBEAN",$F10="PERU"),VLOOKUP($H$18,Tablas!$A$359:$H$361,6,TRUE),IF($F10="VENEZUELA",VLOOKUP($H$18,Tablas!$A$504:$H$506,6,TRUE),IF(OR($F10="ARGENTINA",$F10="COLOMBIA",$F10="PARAGUAY"),VLOOKUP($H$18,Tablas!$A$649:$H$651,6,TRUE),0)))))) -> 0 | J26: =IF($H$18=0,0,IF(OR($F10="CHILE",$F10="HAITI",$F10="HONDURAS"),VLOOKUP($H$18,Tablas!$A$69:$H$71,7,TRUE),IF(OR($F10="COSTA RICA",$F10="EL SALVADOR"),VLOOKUP($H$18,Tablas!$A$214:$H$216,7,TRUE),IF(OR($F10="BELIZE",$F10="GUYANA",$F10="NICARAGUA",$F10="SURINAME",$F10="URUGUAY",$F10="CARIBBEAN",$F10="PERU"),VLOOKUP($H$18,Tablas!$A$359:$H$361,7,TRUE),IF($F10="VENEZUELA",VLOOKUP($H$18,Tablas!$A$504:$H$506,7,TRUE),IF(OR($F10="ARGENTINA",$F10="COLOMBIA",$F10="PARAGUAY"),VLOOKUP($H$18,Tablas!$A$649:$H$651,7,TRUE),0)))))) -> 0 | K26: =IF($H$18=0,0,IF(OR($F10="CHILE",$F10="HAITI",$F10="HONDURAS"),VLOOKUP($H$18,Tablas!$A$69:$H$71,8,TRUE),IF(OR($F10="COSTA RICA",$F10="EL SALVADOR"),VLOOKUP($H$18,Tablas!$A$214:$H$216,8,TRUE),IF(OR($F10="BELIZE",$F10="GUYANA",$F10="NICARAGUA",$F10="SURINAME",$F10="URUGUAY",$F10="CARIBBEAN",$F10="PERU"),VLOOKUP($H$18,Tablas!$A$359:$H$361,8,TRUE),IF($F10="VENEZUELA",VLOOKUP($H$18,Tablas!$A$504:$H$506,8,TRUE),IF(OR($F10="ARGENTINA",$F10="COLOMBIA",$F10="PARAGUAY"),VLOOKUP($H$18,Tablas!$A$649:$H$651,8,TRUE),0)))))) -> 0
D27: Prima Rider Complic. Maternidad | F27: 0 | G27: 0 | H27: 0 | I27: 0 | J27: 0 | K27: 0
D28: Prima Rider Trasplante Organos | F28: 0 | G28: 0 | H28: 0 | I28: 0 | J28: 0 | K28: 0
D29: TOTAL PRIMA NETA : | F29: =SUM(F24:F28) -> 2864 | G29: =SUM(G24:G28) -> 2605 | H29: 2021 | I29: 1713 | J29: 1558 | K29: 1347
D30: Costo Administrativo Anual : | F30: 75 | G30: 75 | H30: 75 | I30: 75 | J30: 75 | K30: 75
D31: GRAN TOTAL : | F31: =SUM(F29:F30) -> 2939 | G31: 2680 | H31: 2096 | I31: 1788 | J31: 1633 | K31: 1422
D33: Tarifas Semestrales
D34: Prima de Titular : | F34: =IF(OR($F10="CHILE",$F10="HAITI",$F10="HONDURAS"),VLOOKUP($K$16,Tablas!$A$78:$H$140,3,TRUE),IF(OR($F10="COSTA RICA",$F10="EL SALVADOR"),VLOOKUP($K$16,Tablas!$A$223:$H$285,3,TRUE),IF(OR($F10="BELIZE",$F10="GUYANA",$F10="NICARAGUA",$F10="SURINAME",$F10="URUGUAY",$F10="CARIBBEAN",$F10="PERU"),VLOOKUP($K$16,Tablas!$A$368:$H$430,3,TRUE),IF($F10="VENEZUELA",VLOOKUP($K$16,Tablas!$A$513:$H$575,3,TRUE),IF(OR($F10="ARGENTINA",$F10="COLOMBIA",$F10="PARAGUAY"),VLOOKUP($K$16,Tablas!$A$658:$H$720,3,TRUE),0))))) -> 1517.92 | G34: =IF(OR($F10="CHILE",$F10="HAITI",$F10="HONDURAS"),VLOOKUP($K$16,Tablas!$A$78:$H$140,4,TRUE),IF(OR($F10="COSTA RICA",$F10="EL SALVADOR"),VLOOKUP($K$16,Tablas!$A$223:$H$285,4,TRUE),IF(OR($F10="BELIZE",$F10="GUYANA",$F10="NICARAGUA",$F10="SURINAME",$F10="URUGUAY",$F10="CARIBBEAN",$F10="PERU"),VLOOKUP($K$16,Tablas!$A$368:$H$430,4,TRUE),IF($F10="VENEZUELA",VLOOKUP($K$16,Tablas!$A$513:$H$575,4,TRUE),IF(OR($F10="ARGENTINA",$F10="COLOMBIA",$F10="PARAGUAY"),VLOOKUP($K$16,Tablas!$A$658:$H$720,4,TRUE),0))))) -> 1380.65 | H34: =IF(OR($F10="CHILE",$F10="HAITI",$F10="HONDURAS"),VLOOKUP($K$16,Tablas!$A$78:$H$140,5,TRUE),IF(OR($F10="COSTA RICA",$F10="EL SALVADOR"),VLOOKUP($K$16,Tablas!$A$223:$H$285,5,TRUE),IF(OR($F10="BELIZE",$F10="GUYANA",$F10="NICARAGUA",$F10="SURINAME",$F10="URUGUAY",$F10="CARIBBEAN",$F10="PERU"),VLOOKUP($K$16,Tablas!$A$368:$H$430,5,TRUE),IF($F10="VENEZUELA",VLOOKUP($K$16,Tablas!$A$513:$H$575,5,TRUE),IF(OR($F10="ARGENTINA",$F10="COLOMBIA",$F10="PARAGUAY"),VLOOKUP($K$16,Tablas!$A$658:$H$720,5,TRUE),0))))) -> 1071.13 | I34: =IF(OR($F10="CHILE",$F10="HAITI",$F10="HONDURAS"),VLOOKUP($K$16,Tablas!$A$78:$H$140,6,TRUE),IF(OR($F10="COSTA RICA",$F10="EL SALVADOR"),VLOOKUP($K$16,Tablas!$A$223:$H$285,6,TRUE),IF(OR($F10="BELIZE",$F10="GUYANA",$F10="NICARAGUA",$F10="SURINAME",$F10="URUGUAY",$F10="CARIBBEAN",$F10="PERU"),VLOOKUP($K$16,Tablas!$A$368:$H$430,6,TRUE),IF($F10="VENEZUELA",VLOOKUP($K$16,Tablas!$A$513:$H$575,6,TRUE),IF(OR($F10="ARGENTINA",$F10="COLOMBIA",$F10="PARAGUAY"),VLOOKUP($K$16,Tablas!$A$658:$H$720,6,TRUE),0))))) -> 907.89 | J34: =IF(OR($F10="CHILE",$F10="HAITI",$F10="HONDURAS"),VLOOKUP($K$16,Tablas!$A$78:$H$140,7,TRUE),IF(OR($F10="COSTA RICA",$F10="EL SALVADOR"),VLOOKUP($K$16,Tablas!$A$223:$H$285,7,TRUE),IF(OR($F10="BELIZE",$F10="GUYANA",$F10="NICARAGUA",$F10="SURINAME",$F10="URUGUAY",$F10="CARIBBEAN",$F10="PERU"),VLOOKUP($K$16,Tablas!$A$368:$H$430,7,TRUE),IF($F10="VENEZUELA",VLOOKUP($K$16,Tablas!$A$513:$H$575,7,TRUE),IF(OR($F10="ARGENTINA",$F10="COLOMBIA",$F10="PARAGUAY"),VLOOKUP($K$16,Tablas!$A$658:$H$720,7,TRUE),0))))) -> 825.74 | K34: =IF(OR($F10="CHILE",$F10="HAITI",$F10="HONDURAS"),VLOOKUP($K$16,Tablas!$A$78:$H$140,8,TRUE),IF(OR($F10="COSTA RICA",$F10="EL SALVADOR"),VLOOKUP($K$16,Tablas!$A$223:$H$285,8,TRUE),IF(OR($F10="BELIZE",$F10="GUYANA",$F10="NICARAGUA",$F10="SURINAME",$F10="URUGUAY",$F10="CARIBBEAN",$F10="PERU"),VLOOKUP($K$16,Tablas!$A$368:$H$430,8,TRUE),IF($F10="VENEZUELA",VLOOKUP($K$16,Tablas!$A$513:$H$575,8,TRUE),IF(OR($F10="ARGENTINA",$F10="COLOMBIA",$F10="PARAGUAY"),VLOOKUP($K$16,Tablas!$A$658:$H$720,8,TRUE),0))))) -> 713.91
D35: Prima de Cónyuge | F35: =IF($H$16=1,0,IF(OR($F10="CHILE",$F10="HAITI",$F10="HONDURAS"),VLOOKUP($K$18,Tablas!$A$78:$H$140,3,TRUE),IF(OR($F10="COSTA RICA",$F10="EL SALVADOR"),VLOOKUP($K$18,Tablas!$A$223:$H$285,3,TRUE),IF(OR($F10="BELIZE",$F10="GUYANA",$F10="NICARAGUA",$F10="SURINAME",$F10="URUGUAY",$F10="CARIBBEAN",$F10="PERU"),VLOOKUP($K$18,Tablas!$A$368:$H$430,3,TRUE),IF($F10="VENEZUELA",VLOOKUP($K$18,Tablas!$A$513:$H$575,3,TRUE),IF(OR($F10="ARGENTINA",$F10="COLOMBIA",$F10="PARAGUAY"),VLOOKUP($K$18,Tablas!$A$658:$H$720,3,TRUE),0)))))) -> 0 | G35: =IF($H$16=1,0,IF(OR($F10="CHILE",$F10="HAITI",$F10="HONDURAS"),VLOOKUP($K$18,Tablas!$A$78:$H$140,4,TRUE),IF(OR($F10="COSTA RICA",$F10="EL SALVADOR"),VLOOKUP($K$18,Tablas!$A$223:$H$285,4,TRUE),IF(OR($F10="BELIZE",$F10="GUYANA",$F10="NICARAGUA",$F10="SURINAME",$F10="URUGUAY",$F10="CARIBBEAN",$F10="PERU"),VLOOKUP($K$18,Tablas!$A$368:$H$430,4,TRUE),IF($F10="VENEZUELA",VLOOKUP($K$18,Tablas!$A$513:$H$575,4,TRUE),IF(OR($F10="ARGENTINA",$F10="COLOMBIA",$F10="PARAGUAY"),VLOOKUP($K$18,Tablas!$A$658:$H$720,4,TRUE),0)))))) -> 0 | H35: =IF($H$16=1,0,IF(OR($F10="CHILE",$F10="HAITI",$F10="HONDURAS"),VLOOKUP($K$18,Tablas!$A$78:$H$140,5,TRUE),IF(OR($F10="COSTA RICA",$F10="EL SALVADOR"),VLOOKUP($K$18,Tablas!$A$223:$H$285,5,TRUE),IF(OR($F10="BELIZE",$F10="GUYANA",$F10="NICARAGUA",$F10="SURINAME",$F10="URUGUAY",$F10="CARIBBEAN",$F10="PERU"),VLOOKUP($K$18,Tablas!$A$368:$H$430,5,TRUE),IF($F10="VENEZUELA",VLOOKUP($K$18,Tablas!$A$513:$H$575,5,TRUE),IF(OR($F10="ARGENTINA",$F10="COLOMBIA",$F10="PARAGUAY"),VLOOKUP($K$18,Tablas!$A$658:$H$720,5,TRUE),0)))))) -> 0 | I35: =IF($H$16=1,0,IF(OR($F10="CHILE",$F10="HAITI",$F10="HONDURAS"),VLOOKUP($K$18,Tablas!$A$78:$H$140,6,TRUE),IF(OR($F10="COSTA RICA",$F10="EL SALVADOR"),VLOOKUP($K$18,Tablas!$A$223:$H$285,6,TRUE),IF(OR($F10="BELIZE",$F10="GUYANA",$F10="NICARAGUA",$F10="SURINAME",$F10="URUGUAY",$F10="CARIBBEAN",$F10="PERU"),VLOOKUP($K$18,Tablas!$A$368:$H$430,6,TRUE),IF($F10="VENEZUELA",VLOOKUP($K$18,Tablas!$A$513:$H$575,6,TRUE),IF(OR($F10="ARGENTINA",$F10="COLOMBIA",$F10="PARAGUAY"),VLOOKUP($K$18,Tablas!$A$658:$H$720,6,TRUE),0)))))) -> 0 | J35: =IF($H$16=1,0,IF(OR($F10="CHILE",$F10="HAITI",$F10="HONDURAS"),VLOOKUP($K$18,Tablas!$A$78:$H$140,7,TRUE),IF(OR($F10="COSTA RICA",$F10="EL SALVADOR"),VLOOKUP($K$18,Tablas!$A$223:$H$285,7,TRUE),IF(OR($F10="BELIZE",$F10="GUYANA",$F10="NICARAGUA",$F10="SURINAME",$F10="URUGUAY",$F10="CARIBBEAN",$F10="PERU"),VLOOKUP($K$18,Tablas!$A$368:$H$430,7,TRUE),IF($F10="VENEZUELA",VLOOKUP($K$18,Tablas!$A$513:$H$575,7,TRUE),IF(OR($F10="ARGENTINA",$F10="COLOMBIA",$F10="PARAGUAY"),VLOOKUP($K$18,Tablas!$A$658:$H$720,7,TRUE),0)))))) -> 0 | K35: =IF($H$16=1,0,IF(OR($F10="CHILE",$F10="HAITI",$F10="HONDURAS"),VLOOKUP($K$18,Tablas!$A$78:$H$140,8,TRUE),IF(OR($F10="COSTA RICA",$F10="EL SALVADOR"),VLOOKUP($K$18,Tablas!$A$223:$H$285,8,TRUE),IF(OR($F10="BELIZE",$F10="GUYANA",$F10="NICARAGUA",$F10="SURINAME",$F10="URUGUAY",$F10="CARIBBEAN",$F10="PERU"),VLOOKUP($K$18,Tablas!$A$368:$H$430,8,TRUE),IF($F10="VENEZUELA",VLOOKUP($K$18,Tablas!$A$513:$H$575,8,TRUE),IF(OR($F10="ARGENTINA",$F10="COLOMBIA",$F10="PARAGUAY"),VLOOKUP($K$18,Tablas!$A$658:$H$720,8,TRUE),0)))))) -> 0
D36: Primas Hijos : | F36: =IF($H$18=0,0,IF(OR($F10="CHILE",$F10="HAITI",$F10="HONDURAS"),VLOOKUP($H$18,Tablas!$A$141:$H$143,3,TRUE),IF(OR($F10="COSTA RICA",$F10="EL SALVADOR"),VLOOKUP($H$18,Tablas!$A$286:$H$288,3,TRUE),IF(OR($F10="BELIZE",$F10="GUYANA",$F10="NICARAGUA",$F10="SURINAME",$F10="URUGUAY",$F10="CARIBBEAN",$F10="PERU"),VLOOKUP($H$18,Tablas!$A$431:$H$433,3,TRUE),IF($F10="VENEZUELA",VLOOKUP($H$18,Tablas!$A$576:$H$578,3,TRUE),IF(OR($F10="ARGENTINA",$F10="COLOMBIA",$F10="PARAGUAY"),VLOOKUP($H$18,Tablas!$A$721:$H$723,3,TRUE),0)))))) -> 0 | G36: =IF($H$18=0,0,IF(OR($F10="CHILE",$F10="HAITI",$F10="HONDURAS"),VLOOKUP($H$18,Tablas!$A$141:$H$143,4,TRUE),IF(OR($F10="COSTA RICA",$F10="EL SALVADOR"),VLOOKUP($H$18,Tablas!$A$286:$H$288,4,TRUE),IF(OR($F10="BELIZE",$F10="GUYANA",$F10="NICARAGUA",$F10="SURINAME",$F10="URUGUAY",$F10="CARIBBEAN",$F10="PERU"),VLOOKUP($H$18,Tablas!$A$431:$H$433,4,TRUE),IF($F10="VENEZUELA",VLOOKUP($H$18,Tablas!$A$576:$H$578,4,TRUE),IF(OR($F10="ARGENTINA",$F10="COLOMBIA",$F10="PARAGUAY"),VLOOKUP($H$18,Tablas!$A$721:$H$723,4,TRUE),0)))))) -> 0 | H36: =IF($H$18=0,0,IF(OR($F10="CHILE",$F10="HAITI",$F10="HONDURAS"),VLOOKUP($H$18,Tablas!$A$141:$H$143,5,TRUE),IF(OR($F10="COSTA RICA",$F10="EL SALVADOR"),VLOOKUP($H$18,Tablas!$A$286:$H$288,5,TRUE),IF(OR($F10="BELIZE",$F10="GUYANA",$F10="NICARAGUA",$F10="SURINAME",$F10="URUGUAY",$F10="CARIBBEAN",$F10="PERU"),VLOOKUP($H$18,Tablas!$A$431:$H$433,5,TRUE),IF($F10="VENEZUELA",VLOOKUP($H$18,Tablas!$A$576:$H$578,5,TRUE),IF(OR($F10="ARGENTINA",$F10="COLOMBIA",$F10="PARAGUAY"),VLOOKUP($H$18,Tablas!$A$721:$H$723,5,TRUE),0)))))) -> 0 | I36: =IF($H$18=0,0,IF(OR($F10="CHILE",$F10="HAITI",$F10="HONDURAS"),VLOOKUP($H$18,Tablas!$A$141:$H$143,6,TRUE),IF(OR($F10="COSTA RICA",$F10="EL SALVADOR"),VLOOKUP($H$18,Tablas!$A$286:$H$288,6,TRUE),IF(OR($F10="BELIZE",$F10="GUYANA",$F10="NICARAGUA",$F10="SURINAME",$F10="URUGUAY",$F10="CARIBBEAN",$F10="PERU"),VLOOKUP($H$18,Tablas!$A$431:$H$433,6,TRUE),IF($F10="VENEZUELA",VLOOKUP($H$18,Tablas!$A$576:$H$578,6,TRUE),IF(OR($F10="ARGENTINA",$F10="COLOMBIA",$F10="PARAGUAY"),VLOOKUP($H$18,Tablas!$A$721:$H$723,6,TRUE),0)))))) -> 0 | J36: =IF($H$18=0,0,IF(OR($F10="CHILE",$F10="HAITI",$F10="HONDURAS"),VLOOKUP($H$18,Tablas!$A$141:$H$143,7,TRUE),IF(OR($F10="COSTA RICA",$F10="EL SALVADOR"),VLOOKUP($H$18,Tablas!$A$286:$H$288,7,TRUE),IF(OR($F10="BELIZE",$F10="GUYANA",$F10="NICARAGUA",$F10="SURINAME",$F10="URUGUAY",$F10="CARIBBEAN",$F10="PERU"),VLOOKUP($H$18,Tablas!$A$431:$H$433,7,TRUE),IF($F10="VENEZUELA",VLOOKUP($H$18,Tablas!$A$576:$H$578,7,TRUE),IF(OR($F10="ARGENTINA",$F10="COLOMBIA",$F10="PARAGUAY"),VLOOKUP($H$18,Tablas!$A$721:$H$723,7,TRUE),0)))))) -> 0 | K36: =IF($H$18=0,0,IF(OR($F10="CHILE",$F10="HAITI",$F10="HONDURAS"),VLOOKUP($H$18,Tablas!$A$141:$H$143,8,TRUE),IF(OR($F10="COSTA RICA",$F10="EL SALVADOR"),VLOOKUP($H$18,Tablas!$A$286:$H$288,8,TRUE),IF(OR($F10="BELIZE",$F10="GUYANA",$F10="NICARAGUA",$F10="SURINAME",$F10="URUGUAY",$F10="CARIBBEAN",$F10="PERU"),VLOOKUP($H$18,Tablas!$A$431:$H$433,8,TRUE),IF($F10="VENEZUELA",VLOOKUP($H$18,Tablas!$A$576:$H$578,8,TRUE),IF(OR($F10="ARGENTINA",$F10="COLOMBIA",$F10="PARAGUAY"),VLOOKUP($H$18,Tablas!$A$721:$H$723,8,TRUE),0)))))) -> 0
D37: Prima Rider Complic. Maternidad | F37: 0 | G37: 0 | H37: 0 | I37: 0 | J37: 0 | K37: 0
D38: Prima Rider Trasplante Organos | F38: 0 | G38: 0 | H38: 0 | I38: 0 | J38: 0 | K38: 0
D39: TOTAL PRIMA NETA : | F39: =SUM(F34:F38) -> 1517.92 | G39: =SUM(G34:G38) -> 1380.65 | H39: 1071.13 | I39: 907.89 | J39: 825.74 | K39: 713.91
D40: Costo Administrativo Anual : | F40: 75 | G40: 75 | H40: 75 | I40: 75 | J40: 75 | K40: 75
D41: GRAN TOTAL (1ra Cuota) : | F41: =SUM(F39:F40) -> 1592.92 | G41: 1455.65 | H41: 1146.13 | I41: 982.89 | J41: 900.74 | K41: 788.91
D42: GRAN TOTAL (2da Cuota) : | F42: =F39 -> 1517.92 | G42: =G39 -> 1380.65 | H42: =H39 -> 1071.13 | I42: 907.89 | J42: 825.74 | K42: 713.91
D43: Tarifas en US $ - Válidas desde 01 Enero 2022
D44: Este presupuesto solamente tiene carácter informativo y en ningún momento expresa compromiso legal para suministrarle cobertura de seguro. La emisión de una póliza de seguro Bupa está sujeta a todas las evaluaciones de riesgo por parte de Bupa y a la recepción de todos los pagos de prima requeridos.

Sheet Tablas (hidden)
A2: BUPA FLEX - ZONE 2 | J2: FACTOR SEMESTRAL : | L2: 0.53 | N2: PAISES
A3: TARIFAS ANUALES | N3: ARGENTINA | O3: 6
A4: EDAD | N4: BELIZE | O4: 4
D5: DW2 | E5: DW3 | F5: DW4 | G5: DW5 | H5: DW6 | N5: CARIBBEAN | O5: 4
A6: 18 | C6: 3901 | D6: 3546 | E6: 2744 | F6: 2327 | G6: 2115 | H6: 1834 | J6: TRUE | K6: TRUE | L6: TRUE | N6: CHILE | O6: 2 | Q6: TRUE | R6: TRUE | S6: TRUE
A7: 19 | C7: 3968 | D7: 3608 | E7: 2803 | F7: 2373 | G7: 2158 | H7: 1869 | J7: TRUE | K7: TRUE | L7: TRUE | N7: COLOMBIA | O7: 6 | Q7: TRUE | R7: TRUE | S7: TRUE
A8: 20 | C8: 4038 | D8: 3668 | E8: 2864 | F8: 2418 | G8: 2201 | H8: 1905 | J8: TRUE | K8: TRUE | L8: TRUE | N8: COSTA RICA | O8: 3 | Q8: TRUE | R8: TRUE | S8: TRUE
A9: 21 | C9: 4101 | D9: 3730 | E9: 2924 | F9: 2466 | G9: 2242 | H9: 1941 | J9: TRUE | K9: TRUE | L9: TRUE | N9: EL SALVADOR | O9: 3 | Q9: TRUE | R9: TRUE | S9: TRUE
A10: 22 | C10: 4180 | D10: 3795 | E10: 2987 | F10: 2515 | G10: 2285 | H10: 1980 | J10: TRUE | K10: TRUE | L10: TRUE | N10: GUYANA | O10: 4 | Q10: TRUE | R10: TRUE | S10: TRUE
A11: 23 | C11: 4245 | D11: 3861 | E11: 3045 | F11: 2561 | G11: 2327 | H11: 2018 | J11: TRUE | K11: TRUE | L11: TRUE | N11: HAITI | O11: 2 | Q11: TRUE | R11: TRUE | S11: TRUE
A12: 24 | C12: 4317 | D12: 3924 | E12: 3111 | F12: 2608 | G12: 2373 | H12: 2058 | J12: TRUE | K12: TRUE | L12: TRUE | N12: HONDURAS | O12: 2 | Q12: TRUE | R12: TRUE | S12: TRUE
A13: 25 | C13: 4388 | D13: 3991 | E13: 3170 | F13: 2655 | G13: 2415 | H13: 2094 | J13: TRUE | K13: TRUE | L13: TRUE | N13: NICARAGUA | O13: 4 | Q13: TRUE | R13: TRUE | S13: TRUE
A14: 26 | C14: 4457 | D14: 4052 | E14: 3232 | F14: 2702 | G14: 2457 | H14: 2131 | J14: TRUE | K14: TRUE | L14: TRUE | N14: PARAGUAY | O14: 6 | Q14: TRUE | R14: TRUE | S14: TRUE
A15: 27 | C15: 4529 | D15: 4115 | E15: 3295 | F15: 2750 | G15: 2504 | H15: 2170 | J15: TRUE | K15: TRUE | L15: TRUE | N15: PERU | O15: 4 | Q15: TRUE | R15: TRUE | S15: TRUE
A16: 28 | C16: 4605 | D16: 4187 | E16: 3374 | F16: 2806 | G16: 2555 | H16: 2212 | J16: TRUE | K16: TRUE | L16: TRUE | N16: SURINAME | O16: 4 | Q16: TRUE | R16: TRUE | S16: TRUE
A17: 29 | C17: 4686 | D17: 4262 | E17: 3449 | F17: 2865 | G17: 2606 | H17: 2258 | J17: TRUE | K17: TRUE | L17: TRUE | N17: URUGUAY | O17: 4 | Q17: TRUE | R17: TRUE | S17: TRUE
A18: 30 | C18: 4764 | D18: 4332 | E18: 3528 | F18: 2924 | G18: 2655 | H18: 2303 | J18: TRUE | K18: TRUE | L18: TRUE | N18: VENEZUELA | O18: 5 | Q18: TRUE | R18: TRUE | S18: TRUE
A19: 31 | C19: 4843 | D19: 4404 | E19: 3604 | F19: 2978 | G19: 2709 | H19: 2347 | J19: TRUE | K19: TRUE | L19: TRUE | Q19: TRUE | R19: TRUE | S19: TRUE
A20: 32 | C20: 4922 | D20: 4474 | E20: 3681 | F20: 3038 | G20: 2760 | H20: 2392 | J20: TRUE | K20: TRUE | L20: TRUE | Q20: TRUE | R20: TRUE | S20: TRUE
A21: 33 | C21: 5055 | D21: 4600 | E21: 3797 | F21: 3127 | G21: 2842 | H21: 2462 | J21: TRUE | K21: TRUE | L21: TRUE | Q21: TRUE | R21: TRUE | S21: TRUE
A22: 34 | C22: 5193 | D22: 4720 | E22: 3911 | F22: 3217 | G22: 2925 | H22: 2533 | J22: TRUE | K22: TRUE | L22: TRUE | Q22: TRUE | R22: TRUE | S22: TRUE
A23: 35 | C23: 5330 | D23: 4844 | E23: 4026 | F23: 3307 | G23: 3011 | H23: 2602 | J23: TRUE | K23: TRUE | L23: TRUE | Q23: TRUE | R23: TRUE | S23: TRUE
A24: 36 | C24: 5465 | D24: 4971 | E24: 4145 | F24: 3399 | G24: 3094 | H24: 2665 | J24: TRUE | K24: TRUE | L24: TRUE | Q24: TRUE | R24: TRUE | S24: TRUE
A25: 37 | C25: 5602 | D25: 5092 | E25: 4259 | F25: 3492 | G25: 3174 | H25: 2737 | J25: TRUE | K25: TRUE | L25: TRUE | Q25: TRUE | R25: TRUE | S25: TRUE
A26: 38 | C26: 5737 | D26: 5218 | E26: 4378 | F26: 3583 | G26: 3256 | H26: 2816 | J26: TRUE | K26: TRUE | L26: TRUE | Q26: TRUE | R26: TRUE | S26: TRUE
A27: 39 | C27: 5873 | D27: 5340 | E27: 4497 | F27: 3676 | G27: 3343 | H27: 2887 | J27: TRUE | K27: TRUE | L27: TRUE | Q27: TRUE | R27: TRUE | S27: TRUE
A28: 40 | C28: 6011 | D28: 5465 | E28: 4617 | F28: 3765 | G28: 3422 | H28: 2957 | J28: TRUE | K28: TRUE | L28: TRUE | Q28: TRUE | R28: TRUE | S28: TRUE
A29: 41 | C29: 6146 | D29: 5585 | E29: 4734 | F29: 3855 | G29: 3506 | H29: 3030 | J29: TRUE | K29: TRUE | L29: TRUE | Q29: TRUE | R29: TRUE | S29: TRUE
A30: 42 | C30: 6283 | D30: 5710 | E30: 4853 | F30: 3948 | G30: 3589 | H30: 3101 | J30: TRUE | K30: TRUE | L30: TRUE | Q30: TRUE | R30: TRUE | S30: TRUE
A31: 43 | C31: 6530 | D31: 5935 | E31: 5068 | F31: 4115 | G31: 3740 | H31: 3232 | J31: TRUE | K31: TRUE | L31: TRUE | Q31: TRUE | R31: TRUE | S31: TRUE
A32: 44 | C32: 6782 | D32: 6165 | E32: 5284 | F32: 4284 | G32: 3897 | H32: 3364 | J32: TRUE | K32: TRUE | L32: TRUE | Q32: TRUE | R32: TRUE | S32: TRUE
A33: 45 | C33: 7030 | D33: 6390 | E33: 5497 | F33: 4450 | G33: 4043 | H33: 3496 | J33: TRUE | K33: TRUE | L33: TRUE | Q33: TRUE | R33: TRUE | S33: TRUE
A34: 46 | C34: 7276 | D34: 6618 | E34: 5714 | F34: 4618 | G34: 4197 | H34: 3628 | J34: TRUE | K34: TRUE | L34: TRUE | Q34: TRUE | R34: TRUE | S34: TRUE
A35: 47 | C35: 7526 | D35: 6843 | E35: 5928 | F35: 4789 | G35: 4354 | H35: 3758 | J35: TRUE | K35: TRUE | L35: TRUE | Q35: TRUE | R35: TRUE | S35: TRUE
A36: 48 | C36: 7793 | D36: 7087 | E36: 6151 | F36: 4961 | G36: 4509 | H36: 3897 | J36: TRUE | K36: TRUE | L36: TRUE | Q36: TRUE | R36: TRUE | S36: TRUE
A37: 49 | C37: 8061 | D37: 7326 | E37: 6369 | F37: 5137 | G37: 4671 | H37: 4031 | J37: TRUE | K37: TRUE | L37: TRUE | Q37: TRUE | R37: TRUE | S37: TRUE
A38: 50 | C38: 8328 | D38: 7569 | E38: 6588 | F38: 5312 | G38: 4828 | H38: 4168 | J38: TRUE | K38: TRUE | L38: TRUE | Q38: TRUE | R38: TRUE | S38: TRUE
A39: 51 | C39: 8594 | D39: 7816 | E39: 6811 | F39: 5485 | G39: 4985 | H39: 4305 | J39: TRUE | K39: TRUE | L39: TRUE | Q39: TRUE | R39: TRUE | S39: TRUE
A40: 52 | C40: 8863 | D40: 8056 | E40: 7037 | F40: 5655 | G40: 5144 | H40: 4443 | J40: TRUE | K40: TRUE | L40: TRUE | Q40: TRUE | R40: TRUE | S40: TRUE
A41: 53 | C41: 9178 | D41: 8340 | E41: 7306 | F41: 5865 | G41: 5335 | H41: 4610 | J41: TRUE | K41: TRUE | L41: TRUE | Q41: TRUE | R41: TRUE | S41: TRUE
A42: 54 | C42: 9487 | D42: 8621 | E42: 7579 | F42: 6081 | G42: 5526 | H42: 4773 | J42: TRUE | K42: TRUE | L42: TRUE | Q42: TRUE | R42: TRUE | S42: TRUE
A43: 55 | C43: 9799 | D43: 8906 | E43: 7855 | F43: 6285 | G43: 5719 | H43: 4938 | J43: TRUE | K43: TRUE | L43: TRUE | Q43: TRUE | R43: TRUE | S43: TRUE
A44: 56 | C44: 10111 | D44: 9189 | E44: 8130 | F44: 6503 | G44: 5907 | H44: 5105 | J44: TRUE | K44: TRUE | L44: TRUE | Q44: TRUE | R44: TRUE | S44: TRUE
A45: 57 | C45: 10425 | D45: 9473 | E45: 8403 | F45: 6712 | G45: 6099 | H45: 5270 | J45: TRUE | K45: TRUE | L45: TRUE | Q45: TRUE | R45: TRUE | S45: TRUE
A46: 58 | C46: 10783 | D46: 9804 | E46: 8731 | F46: 6967 | G46: 6337 | H46: 5474 | J46: TRUE | K46: TRUE | L46: TRUE | Q46: TRUE | R46: TRUE | S46: TRUE
A47: 59 | C47: 11146 | D47: 10134 | E47: 9059 | F47: 7228 | G47: 6576 | H47: 5679 | J47: TRUE | K47: TRUE | L47: TRUE | Q47: TRUE | R47: TRUE | S47: TRUE
A48: 60 | C48: 11509 | D48: 10461 | E48: 9387 | F48: 7490 | G48: 6811 | H48: 5886 | J48: TRUE | K48: TRUE | L48: TRUE | Q48: TRUE | R48: TRUE | S48: TRUE
A49: 61 | C49: 11932 | D49: 10845 | E49: 9789 | F49: 7773 | G49: 7066 | H49: 6103 | J49: TRUE | K49: TRUE | L49: TRUE | Q49: TRUE | R49: TRUE | S49: TRUE
A50: 62 | C50: 12469 | D50: 11337 | E50: 10266 | F50: 8135 | G50: 7396 | H50: 6383 | J50: TRUE | K50: TRUE | L50: TRUE | Q50: TRUE | R50: TRUE | S50: TRUE
A51: 63 | C51: 13114 | D51: 11922 | E51: 10791 | F51: 8555 | G51: 7776 | H51: 6715 | J51: TRUE | K51: TRUE | L51: TRUE | Q51: TRUE | R51: TRUE | S51: TRUE
A52: 64 | C52: 13867 | D52: 12606 | E52: 11415 | F52: 9040 | G52: 8220 | H52: 7096 | J52: TRUE | K52: TRUE | L52: TRUE | Q52: TRUE | R52: TRUE | S52: TRUE
A53: 65 | C53: 14778 | D53: 13435 | E53: 12263 | F53: 9684 | G53: 8804 | H53: 7596 | J53: TRUE | K53: TRUE | L53: TRUE | Q53: TRUE | R53: TRUE | S53: TRUE
A54: 66 | C54: 15836 | D54: 14395 | E54: 13253 | F54: 10429 | G54: 9482 | H54: 8172 | J54: TRUE | K54: TRUE | L54: TRUE | Q54: TRUE | R54: TRUE | S54: TRUE
A55: 67 | C55: 17105 | D55: 15552 | E55: 14313 | F55: 11261 | G55: 10238 | H55: 8831 | J55: TRUE | K55: TRUE | L55: TRUE | Q55: TRUE | R55: TRUE | S55: TRUE
A56: 68 | C56: 18553 | D56: 16863 | E56: 15527 | F56: 12214 | G56: 11103 | H56: 9578 | J56: TRUE | K56: TRUE | L56: TRUE | Q56: TRUE | R56: TRUE | S56: TRUE
A57: 69 | C57: 20255 | D57: 18412 | E57: 16951 | F57: 13345 | G57: 12128 | H57: 10461 | J57: TRUE | K57: TRUE | L57: TRUE | Q57: TRUE | R57: TRUE | S57: TRUE
A58: 70 | C58: 22195 | D58: 20178 | E58: 18695 | F58: 14748 | G58: 13413 | H58: 11559 | J58: TRUE | K58: TRUE | L58: TRUE | Q58: TRUE | R58: TRUE | S58: TRUE
A59: 71 | C59: 24450 | D59: 22227 | E59: 20768 | F59: 16248 | G59: 14767 | H59: 12731 | J59: TRUE | K59: TRUE | L59: TRUE | Q59: TRUE | R59: TRUE | S59: TRUE
A60: 72 | C60: 27057 | D60: 24596 | E60: 22984 | F60: 17983 | G60: 16348 | H60: 14092 | J60: TRUE | K60: TRUE | L60: TRUE | Q60: TRUE | R60: TRUE | S60: TRUE
A61: 73 | C61: 30031 | D61: 27299 | E61: 25512 | F61: 19956 | G61: 18140 | H61: 15646 | J61: TRUE | K61: TRUE | L61: TRUE | Q61: TRUE | R61: TRUE | S61: TRUE
A62: 74 | C62: 33486 | D62: 30441 | E62: 28439 | F62: 22255 | G62: 20234 | H62: 17453 | J62: TRUE | K62: TRUE | L62: TRUE | Q62: TRUE | R62: TRUE | S62: TRUE
A63: 75 | C63: 37430 | D63: 34031 | E63: 31876 | F63: 24972 | G63: 22701 | H63: 19568 | J63: TRUE | K63: TRUE | L63: TRUE | Q63: TRUE | R63: TRUE | S63: TRUE
A64: 76 | C64: 41973 | D64: 38156 | E64: 35867 | F64: 28004 | G64: 25459 | H64: 21946 | J64: TRUE | K64: TRUE | L64: TRUE | Q64: TRUE | R64: TRUE | S64: TRUE
A65: 77 | C65: 47142 | D65: 42858 | E65: 40311 | F65: 31450 | G65: 28590 | H65: 24647 | J65: TRUE | K65: TRUE | L65: TRUE | Q65: TRUE | R65: TRUE | S65: TRUE
A66: 78 | C66: 52969 | D66: 48154 | E66: 45293 | F66: 35336 | G66: 32124 | H66: 27692 | J66: TRUE | K66: TRUE | L66: TRUE | Q66: TRUE | R66: TRUE | S66: TRUE
A67: 79 | C67: 59512 | D67: 54104 | E67: 50891 | F67: 39705 | G67: 36096 | H67: 31114 | J67: TRUE | K67: TRUE | L67: TRUE | Q67: TRUE | R67: TRUE | S67: TRUE
A68: 80 | C68: 67345 | D68: 61223 | E68: 57589 | F68: 44925 | G68: 40845 | H68: 35206 | J68: TRUE | K68: TRUE | L68: TRUE | Q68: TRUE | R68: TRUE | S68: TRUE
A69: 1 | B69: Hijo | C69: 1990 | D69: 1811 | E69: 1067 | F69: 999 | G69: 908 | H69: 782 | J69: TRUE | K69: TRUE | L69: TRUE | Q69: TRUE | R69: TRUE | S69: TRUE
A70: 2 | B70: Hijos | C70: 3356 | D70: 3052 | E70: 1580 | F70: 1576 | G70: 1434 | H70: 1240 | J70: TRUE | K70: TRUE | L70: TRUE | Q70: TRUE | R70: TRUE | S70: TRUE
A71: 3 | B71: Hijos o más | C71: 4922 | D71: 4476 | E71: 2278 | F71: 2289 | G71: 2081 | H71: 1793 | J71: TRUE | K71: TRUE | L71: TRUE | Q71: TRUE | R71: TRUE | S71: TRUE
A72: 1 | B72: Rider Comp. Maternidad | C72: 225 | D72: 225 | E72: 225 | F72: 225 | G72: 225 | H72: 225
A73: 1 | B73: Transplante de organos | C73: 300 | D73: 300 | E73: 300 | F73: 300 | G73: 300 | H73: 300
A75: TARIFAS SEMESTRALES
A76: EDAD
D77: DW2 | E77: DW3 | F77: DW4 | G77: DW5 | H77: DW6
A78: 18 | C78: =+C6*$L$2 -> 2067.53 | D78: =+D6*$L$2 -> 1879.38 | E78: 1454.32 | F78: 1233.31 | G78: 1120.95 | H78: 972.02
A79: 19 | C79: =+C7*$L$2 -> 2103.04 | D79: =+D7*$L$2 -> 1912.24 | E79: 1485.59 | F79: 1257.69 | G79: 1143.74 | H79: 990.57
A80: 20 | C80: =+C8*$L$2 -> 2140.14 | D80: 1944.04 | E80: 1517.92 | F80: 1281.54 | G80: 1166.53 | H80: 1009.65
A81: 21 | C81: =+C9*$L$2 -> 2173.53 | D81: 1976.9 | E81: 1549.72 | F81: 1306.98 | G81: 1188.26 | H81: 1028.73
A82: 22 | C82: =+C10*$L$2 -> 2215.4 | D82: 2011.35 | E82: 1583.11 | F82: 1332.95 | G82: 1211.05 | H82: 1049.4
A83: 23 | C83: =+C11*$L$2 -> 2249.85 | D83: 2046.33 | E83: 1613.85 | F83: 1357.33 | G83: 1233.31 | H83: 1069.54
A84: 24 | C84: =+C12*$L$2 -> 2288.01 | D84: 2079.72 | E84: 1648.83 | F84: 1382.24 | G84: 1257.69 | H84: 1090.74
A85: 25 | C85: =+C13*$L$2 -> 2325.64 | D85: 2115.23 | E85: 1680.1 | F85: 1407.15 | G85: 1279.95 | H85: 1109.82
A86: 26 | C86: =+C14*$L$2 -> 2362.21 | D86: 2147.56 | E86: 1712.96 | F86: 1432.06 | G86: 1302.21 | H86: 1129.43
A87: 27 | C87: =+C15*$L$2 -> 2400.37 | D87: 2180.95 | E87: 1746.35 | F87: 1457.5 | G87: 1327.12 | H87: 1150.1
A88: 28 | C88: =+C16*$L$2 -> 2440.65 | D88: 2219.11 | E88: 1788.22 | F88: 1487.18 | G88: 1354.15 | H88: 1172.36
A89: 29 | C89: =+C17*$L$2 -> 2483.58 | D89: 2258.86 | E89: 1827.97 | F89: 1518.45 | G89: 1381.18 | H89: 1196.74
A90: 30 | C90: =+C18*$L$2 -> 2524.92 | D90: 2295.96 | E90: 1869.84 | F90: 1549.72 | G90: 1407.15 | H90: 1220.59
A91: 31 | C91: =+C19*$L$2 -> 2566.79 | D91: 2334.12 | E91: 1910.12 | F91: 1578.34 | G91: 1435.77 | H91: 1243.91
A92: 32 | C92: =+C20*$L$2 -> 2608.66 | D92: 2371.22 | E92: 1950.93 | F92: 1610.14 | G92: 1462.8 | H92: 1267.76
A93: 33 | C93: =+C21*$L$2 -> 2679.15 | D93: 2438 | E93: 2012.41 | F93: 1657.31 | G93: 1506.26 | H93: 1304.86
A94: 34 | C94: =+C22*$L$2 -> 2752.29 | D94: 2501.6 | E94: 2072.83 | F94: 1705.01 | G94: 1550.25 | H94: 1342.49
A95: 35 | C95: =+C23*$L$2 -> 2824.9 | D95: 2567.32 | E95: 2133.78 | F95: 1752.71 | G95: 1595.83 | H95: 1379.06
A96: 36 | C96: =+C24*$L$2 -> 2896.45 | D96: 2634.63 | E96: 2196.85 | F96: 1801.47 | G96: 1639.82 | H96: 1412.45
A97: 37 | C97: =+C25*$L$2 -> 2969.06 | D97: 2698.76 | E97: 2257.27 | F97: 1850.76 | G97: 1682.22 | H97: 1450.61
A98: 38 | C98: =+C26*$L$2 -> 3040.61 | D98: 2765.54 | E98: 2320.34 | F98: 1898.99 | G98: 1725.68 | H98: 1492.48
A99: 39 | C99: =+C27*$L$2 -> 3112.69 | D99: 2830.2 | E99: 2383.41 | F99: 1948.28 | G99: 1771.79 | H99: 1530.11
A100: 40 | C100: =+C28*$L$2 -> 3185.83 | D100: 2896.45 | E100: 2447.01 | F100: 1995.45 | G100: 1813.66 | H100: 1567.21
A101: 41 | C101: =+C29*$L$2 -> 3257.38 | D101: 2960.05 | E101: 2509.02 | F101: 2043.15 | G101: 1858.18 | H101: 1605.9
A102: 42 | C102: =+C30*$L$2 -> 3329.99 | D102: 3026.3 | E102: 2572.09 | F102: 2092.44 | G102: 1902.17 | H102: 1643.53
A103: 43 | C103: =+C31*$L$2 -> 3460.9 | D103: 3145.55 | E103: 2686.04 | F103: 2180.95 | G103: 1982.2 | H103: 1712.96
A104: 44 | C104: =+C32*$L$2 -> 3594.46 | D104: 3267.45 | E104: 2800.52 | F104: 2270.52 | G104: 2065.41 | H104: 1782.92
A105: 45 | C105: =+C33*$L$2 -> 3725.9 | D105: 3386.7 | E105: 2913.41 | F105: 2358.5 | G105: 2142.79 | H105: 1852.88
A106: 46 | C106: =+C34*$L$2 -> 3856.28 | D106: 3507.54 | E106: 3028.42 | F106: 2447.54 | G106: 2224.41 | H106: 1922.84
A107: 47 | C107: =+C35*$L$2 -> 3988.78 | D107: 3626.79 | E107: 3141.84 | F107: 2538.17 | G107: 2307.62 | H107: 1991.74
A108: 48 | C108: =+C36*$L$2 -> 4130.29 | D108: 3756.11 | E108: 3260.03 | F108: 2629.33 | G108: 2389.77 | H108: 2065.41
A109: 49 | C109: =+C37*$L$2 -> 4272.33 | D109: 3882.78 | E109: 3375.57 | F109: 2722.61 | G109: 2475.63 | H109: 2136.43
A110: 50 | C110: =+C38*$L$2 -> 4413.84 | D110: 4011.57 | E110: 3491.64 | F110: 2815.36 | G110: 2558.84 | H110: 2209.04
A111: 51 | C111: =+C39*$L$2 -> 4554.82 | D111: 4142.48 | E111: 3609.83 | F111: 2907.05 | G111: 2642.05 | H111: 2281.65
A112: 52 | C112: =+C40*$L$2 -> 4697.39 | D112: 4269.68 | E112: 3729.61 | F112: 2997.15 | G112: 2726.32 | H112: 2354.79
A113: 53 | C113: =+C41*$L$2 -> 4864.34 | D113: 4420.2 | E113: 3872.18 | F113: 3108.45 | G113: 2827.55 | H113: 2443.3
A114: 54 | C114: =+C42*$L$2 -> 5028.11 | D114: 4569.13 | E114: 4016.87 | F114: 3222.93 | G114: 2928.78 | H114: 2529.69
A115: 55 | C115: =+C43*$L$2 -> 5193.47 | D115: 4720.18 | E115: 4163.15 | F115: 3331.05 | G115: 3031.07 | H115: 2617.14
A116: 56 | C116: =+C44*$L$2 -> 5358.83 | D116: 4870.17 | E116: 4308.9 | F116: 3446.59 | G116: 3130.71 | H116: =+H44*$L$2 -> 2705.65
A117: 57 | C117: =+C45*$L$2 -> 5525.25 | D117: =+D45*$L$2 -> 5020.69 | E117: 4453.59 | F117: 3557.36 | G117: 3232.47 | H117: 2793.1
A118: 58 | C118: =+C46*$L$2 -> 5714.99 | D118: =+D46*$L$2 -> 5196.12 | E118: 4627.43 | F118: 3692.51 | G118: 3358.61 | H118: 2901.22
A119: 59 | C119: =+C47*$L$2 -> 5907.38 | D119: =+D47*$L$2 -> 5371.02 | E119: 4801.27 | F119: 3830.84 | G119: 3485.28 | H119: 3009.87
A120: 60 | C120: =+C48*$L$2 -> 6099.77 | D120: =+D48*$L$2 -> 5544.33 | E120: 4975.11 | F120: 3969.7 | G120: 3609.83 | H120: 3119.58
A121: 61 | C121: =+C49*$L$2 -> 6323.96 | D121: =+D49*$L$2 -> 5747.85 | E121: 5188.17 | F121: 4119.69 | G121: 3744.98 | H121: 3234.59
A122: 62 | C122: =+C50*$L$2 -> 6608.57 | D122: =+D50*$L$2 -> 6008.61 | E122: 5440.98 | F122: 4311.55 | G122: 3919.88 | H122: 3382.99
A123: 63 | C123: =+C51*$L$2 -> 6950.42 | D123: =+D51*$L$2 -> 6318.66 | E123: 5719.23 | F123: 4534.15 | G123: 4121.28 | H123: 3558.95
A124: 64 | C124: =+C52*$L$2 -> 7349.51 | D124: =+D52*$L$2 -> 6681.18 | E124: 6049.95 | F124: 4791.2 | G124: 4356.6 | H124: 3760.88
A125: 65 | C125: =+C53*$L$2 -> 7832.34 | D125: =+D53*$L$2 -> 7120.55 | E125: 6499.39 | F125: 5132.52 | G125: 4666.12 | H125: 4025.88
A126: 66 | C126: =+C54*$L$2 -> 8393.08 | D126: =+D54*$L$2 -> 7629.35 | E126: 7024.09 | F126: 5527.37 | G126: 5025.46 | H126: 4331.16
A127: 67 | C127: =+C55*$L$2 -> 9065.65 | D127: =+D55*$L$2 -> 8242.56 | E127: 7585.89 | F127: 5968.33 | G127: 5426.14 | H127: 4680.43
A128: 68 | C128: =+C56*$L$2 -> 9833.09 | D128: =+D56*$L$2 -> 8937.39 | E128: 8229.31 | F128: 6473.42 | G128: 5884.59 | H128: 5076.34
A129: 69 | C129: =+C57*$L$2 -> 10735.15 | D129: =+D57*$L$2 -> 9758.36 | E129: 8984.03 | F129: 7072.85 | G129: 6427.84 | H129: 5544.33
A130: 70 | C130: =+C58*$L$2 -> 11763.35 | D130: =+D58*$L$2 -> 10694.34 | E130: 9908.35 | F130: 7816.44 | G130: 7108.89 | H130: 6126.27
A131: 71 | C131: =+C59*$L$2 -> 12958.5 | D131: =+D59*$L$2 -> 11780.31 | E131: 11007.04 | F131: 8611.44 | G131: 7826.51 | H131: 6747.43
A132: 72 | C132: =+C60*$L$2 -> 14340.21 | D132: =+D60*$L$2 -> 13035.88 | E132: 12181.52 | F132: 9530.99 | G132: 8664.44 | H132: 7468.76
A133: 73 | C133: =+C61*$L$2 -> 15916.43 | D133: =+D61*$L$2 -> 14468.47 | E133: 13521.36 | F133: 10576.68 | G133: 9614.2 | H133: 8292.38
A134: 74 | C134: =+C62*$L$2 -> 17747.58 | D134: =+D62*$L$2 -> 16133.73 | E134: 15072.67 | F134: 11795.15 | G134: 10724.02 | H134: 9250.09
A135: 75 | C135: =+C63*$L$2 -> 19837.9 | D135: =+D63*$L$2 -> 18036.43 | E135: 16894.28 | F135: 13235.16 | G135: 12031.53 | H135: 10371.04
A136: 76 | C136: =+C64*$L$2 -> 22245.69 | D136: =+D64*$L$2 -> 20222.68 | E136: 19009.51 | F136: 14842.12 | G136: 13493.27 | H136: 11631.38
A137: 77 | C137: =+C65*$L$2 -> 24985.26 | D137: =+D65*$L$2 -> 22714.74 | E137: 21364.83 | F137: 16668.5 | G137: 15152.7 | H137: 13062.91
A138: 78 | C138: =+C66*$L$2 -> 28073.57 | D138: =+D66*$L$2 -> 25521.62 | E138: 24005.29 | F138: 18728.08 | G138: 17025.72 | H138: 14676.76
A139: 79 | C139: =+C67*$L$2 -> 31541.36 | D139: =+D67*$L$2 -> 28675.12 | E139: 26972.23 | F139: 21043.65 | G139: 19130.88 | H139: 16490.42
A140: 80 | C140: =+C68*$L$2 -> 35692.85 | D140: =+D68*$L$2 -> 32448.19 | E140: 30522.17 | F140: 23810.25 | G140: 21647.85 | H140: 18659.18
A141: 1 | B141: Hijo | C141: =+C69*$L$2 -> 1054.7 | D141: =+D69*$L$2 -> 959.83 | E141: 565.51 | F141: 529.47 | G141: 481.24 | H141: 414.46
A142: 2 | B142: Hijos | C142: =+C70*$L$2 -> 1778.68 | D142: =+D70*$L$2 -> 1617.56 | E142: 837.4 | F142: 835.28 | G142: 760.02 | H142: 657.2
A143: 3 | B143: Hijos o más | C143: =+C71*$L$2 -> 2608.66 | D143: =+D71*$L$2 -> 2372.28 | E143: 1207.34 | F143: 1213.17 | G143: 1102.93 | H143: 950.29
A144: 1 | B144: Rider Comp. Maternidad | C144: =+C72*$L$2 -> 119.25 | D144: 119.25 | E144: 119.25 | F144: 119.25 | G144: 119.25 | H144: 119.25
A145: 1 | B145: Transplante de organos | C145: =+C73*$L$2 -> 159 | D145: 159 | E145: 159 | F145: 159 | G145: 159 | H145: 159
A147: BUPA FLEX - ZONE 3
A148: TARIFAS ANUALES
A149: EDAD
D150: DW2 | E150: DW3 | F150: DW4 | G150: DW5 | H150: DW6
A151: 18 | C151: 4033 | D151: 3667 | E151: 2674 | F151: 2418 | G151: 2201 | H151: 1899 | J151: TRUE | K151: TRUE | L151: TRUE | M151: TRUE | N151: TRUE | O151: TRUE
A152: 19 | C152: 4101 | D152: 3731 | E152: 2733 | F152: 2466 | G152: 2240 | H152: 1938 | J152: TRUE | K152: TRUE | L152: TRUE | M152: TRUE | N152: TRUE | O152: TRUE
A153: 20 | C153: 4176 | D153: 3794 | E153: 2798 | F153: 2508 | G153: 2282 | H153: 1975 | J153: TRUE | K153: TRUE | L153: TRUE | M153: TRUE | N153: TRUE | O153: TRUE
A154: 21 | C154: 4245 | D154: 3861 | E154: 2859 | F154: 2559 | G154: 2330 | H154: 2011 | J154: TRUE | K154: TRUE | L154: TRUE | M154: TRUE | N154: TRUE | O154: TRUE
A155: 22 | C155: 4318 | D155: 3926 | E155: 2925 | F155: 2606 | G155: 2372 | H155: 2051 | J155: TRUE | K155: TRUE | L155: TRUE | M155: TRUE | N155: TRUE | O155: TRUE
A156: 23 | C156: 4393 | D156: 3992 | E156: 2985 | F156: 2657 | G156: 2416 | H156: 2089 | J156: TRUE | K156: TRUE | L156: TRUE | M156: TRUE | N156: TRUE | O156: TRUE
A157: 24 | C157: 4466 | D157: 4057 | E157: 3051 | F157: 2708 | G157: 2462 | H157: 2128 | J157: TRUE | K157: TRUE | L157: TRUE | M157: TRUE | N157: TRUE | O157: TRUE
A158: 25 | C158: 4537 | D158: 4127 | E158: 3114 | F158: 2758 | G158: 2506 | H158: 2165 | J158: TRUE | K158: TRUE | L158: TRUE | M158: TRUE | N158: TRUE | O158: TRUE
A159: 26 | C159: 4610 | D159: 4194 | E159: 3174 | F159: 2805 | G159: 2549 | H159: 2205 | J159: TRUE | K159: TRUE | L159: TRUE | M159: TRUE | N159: TRUE | O159: TRUE
A160: 27 | C160: 4685 | D160: 4256 | E160: 3243 | F160: 2851 | G160: 2594 | H160: 2242 | J160: TRUE | K160: TRUE | L160: TRUE | M160: TRUE | N160: TRUE | O160: TRUE
A161: 28 | C161: 4769 | D161: 4333 | E161: 3321 | F161: 2911 | G161: 2647 | H161: 2291 | J161: TRUE | K161: TRUE | L161: TRUE | M161: TRUE | N161: TRUE | O161: TRUE
A162: 29 | C162: 4849 | D162: 4409 | E162: 3402 | F162: 2974 | G162: 2702 | H162: 2334 | J162: TRUE | K162: TRUE | L162: TRUE | M162: TRUE | N162: TRUE | O162: TRUE
A163: 30 | C163: 4932 | D163: 4483 | E163: 3484 | F163: 3032 | G163: 2758 | H163: 2385 | J163: TRUE | K163: TRUE | L163: TRUE | M163: TRUE | N163: TRUE | O163: TRUE
A164: 31 | C164: 5011 | D164: 4557 | E164: 3567 | F164: 3089 | G164: 2808 | H164: 2430 | J164: TRUE | K164: TRUE | L164: TRUE | M164: TRUE | N164: TRUE | O164: TRUE
A165: 32 | C165: 5096 | D165: 4634 | E165: 3648 | F165: 3150 | G165: 2861 | H165: 2471 | J165: TRUE | K165: TRUE | L165: TRUE | M165: TRUE | N165: TRUE | O165: TRUE
A166: 33 | C166: 5238 | D166: 4761 | E166: 3763 | F166: 3243 | G166: 2947 | H166: 2547 | J166: TRUE | K166: TRUE | L166: TRUE | M166: TRUE | N166: TRUE | O166: TRUE
A167: 34 | C167: 5378 | D167: 4887 | E167: 3885 | F167: 3333 | G167: 3032 | H167: 2621 | J167: TRUE | K167: TRUE | L167: TRUE | M167: TRUE | N167: TRUE | O167: TRUE
A168: 35 | C168: 5517 | D168: 5011 | E168: 4000 | F168: 3423 | G168: 3114 | H168: 2694 | J168: TRUE | K168: TRUE | L168: TRUE | M168: TRUE | N168: TRUE | O168: TRUE
A169: 36 | C169: 5655 | D169: 5144 | E169: 4119 | F169: 3523 | G169: 3196 | H169: 2767 | J169: TRUE | K169: TRUE | L169: TRUE | M169: TRUE | N169: TRUE | O169: TRUE
A170: 37 | C170: 5798 | D170: 5271 | E170: 4235 | F170: 3611 | G170: 3282 | H170: 2842 | J170: TRUE | K170: TRUE | L170: TRUE | M170: TRUE | N170: TRUE | O170: TRUE
A171: 38 | C171: 5941 | D171: 5400 | E171: 4360 | F171: 3706 | G171: 3369 | H171: 2915 | J171: TRUE | K171: TRUE | L171: TRUE | M171: TRUE | N171: TRUE | O171: TRUE
A172: 39 | C172: 6077 | D172: 5524 | E172: 4483 | F172: 3798 | G172: 3454 | H172: 2987 | J172: TRUE | K172: TRUE | L172: TRUE | M172: TRUE | N172: TRUE | O172: TRUE
A173: 40 | C173: 6221 | D173: 5655 | E173: 4609 | F173: 3893 | G173: 3540 | H173: 3061 | J173: TRUE | K173: TRUE | L173: TRUE | M173: TRUE | N173: TRUE | O173: TRUE
A174: 41 | C174: 6366 | D174: 5786 | E174: 4732 | F174: 3988 | G174: 3627 | H174: 3136 | J174: TRUE | K174: TRUE | L174: TRUE | M174: TRUE | N174: TRUE | O174: TRUE
A175: 42 | C175: 6506 | D175: 5914 | E175: 4855 | F175: 4083 | G175: 3713 | H175: 3210 | J175: TRUE | K175: TRUE | L175: TRUE | M175: TRUE | N175: TRUE | O175: TRUE
A176: 43 | C176: 6766 | D176: 6150 | E176: 5080 | F176: 4256 | G176: 3873 | H176: 3345 | J176: TRUE | K176: TRUE | L176: TRUE | M176: TRUE | N176: TRUE | O176: TRUE
A177: 44 | C177: 7020 | D177: 6384 | E177: 5294 | F177: 4432 | G177: 4028 | H177: 3482 | J177: TRUE | K177: TRUE | L177: TRUE | M177: TRUE | N177: TRUE | O177: TRUE
A178: 45 | C178: 7282 | D178: 6618 | E178: 5518 | F178: 4607 | G178: 4187 | H178: 3614 | J178: TRUE | K178: TRUE | L178: TRUE | M178: TRUE | N178: TRUE | O178: TRUE
A179: 46 | C179: 7537 | D179: 6851 | E179: 5736 | F179: 4779 | G179: 4342 | H179: 3753 | J179: TRUE | K179: TRUE | L179: TRUE | M179: TRUE | N179: TRUE | O179: TRUE
A180: 47 | C180: 7793 | D180: 7088 | E180: 5959 | F180: 4953 | G180: 4505 | H180: 3888 | J180: TRUE | K180: TRUE | L180: TRUE | M180: TRUE | N180: TRUE | O180: TRUE
A181: 48 | C181: 8067 | D181: 7337 | E181: 6182 | F181: 5135 | G181: 4669 | H181: 4028 | J181: TRUE | K181: TRUE | L181: TRUE | M181: TRUE | N181: TRUE | O181: TRUE
A182: 49 | C182: 8347 | D182: 7585 | E182: 6410 | F182: 5315 | G182: 4834 | H182: 4171 | J182: TRUE | K182: TRUE | L182: TRUE | M182: TRUE | N182: TRUE | O182: TRUE
A183: 50 | C183: 8621 | D183: 7837 | E183: 6640 | F183: 5497 | G183: 4999 | H183: 4315 | J183: TRUE | K183: TRUE | L183: TRUE | M183: TRUE | N183: TRUE | O183: TRUE
A184: 51 | C184: 8898 | D184: 8089 | E184: 6868 | F184: 5675 | G184: 5163 | H184: 4456 | J184: TRUE | K184: TRUE | L184: TRUE | M184: TRUE | N184: TRUE | O184: TRUE
A185: 52 | C185: 9175 | D185: 8340 | E185: 7093 | F185: 5859 | G185: 5328 | H185: 4597 | J185: TRUE | K185: TRUE | L185: TRUE | M185: TRUE | N185: TRUE | O185: TRUE
A186: 53 | C186: 9498 | D186: 8632 | E186: 7376 | F186: 6075 | G186: 5522 | H186: 4769 | J186: TRUE | K186: TRUE | L186: TRUE | M186: TRUE | N186: TRUE | O186: TRUE
A187: 54 | C187: 9822 | D187: 8927 | E187: 7661 | F187: 6296 | G187: 5723 | H187: 4938 | J187: TRUE | K187: TRUE | L187: TRUE | M187: TRUE | N187: TRUE | O187: TRUE
A188: 55 | C188: 10142 | D188: 9219 | E188: 7940 | F188: 6511 | G188: 5917 | H188: 5111 | J188: TRUE | K188: TRUE | L188: TRUE | M188: TRUE | N188: TRUE | O188: TRUE
A189: 56 | C189: 10463 | D189: 9517 | E189: 8228 | F189: 6730 | G189: 6119 | H189: 5285 | J189: TRUE | K189: TRUE | L189: TRUE | M189: TRUE | N189: TRUE | O189: TRUE
A190: 57 | C190: 10789 | D190: 9807 | E190: 8508 | F190: 6950 | G190: 6316 | H190: 5453 | J190: TRUE | K190: TRUE | L190: TRUE | M190: TRUE | N190: TRUE | O190: TRUE
A191: 58 | C191: 11159 | D191: 10144 | E191: 8846 | F191: 7221 | G191: 6564 | H191: 5663 | J191: TRUE | K191: TRUE | L191: TRUE | M191: TRUE | N191: TRUE | O191: TRUE
A192: 59 | C192: 11533 | D192: 10483 | E192: 9181 | F192: 7493 | G192: 6810 | H192: 5877 | J192: TRUE | K192: TRUE | L192: TRUE | M192: TRUE | N192: TRUE | O192: TRUE
A193: 60 | C193: 11904 | D193: 10821 | E193: 9517 | F193: 7762 | G193: 7057 | H193: 6089 | J193: TRUE | K193: TRUE | L193: TRUE | M193: TRUE | N193: TRUE | O193: TRUE
A194: 61 | C194: 12353 | D194: 11229 | E194: 9941 | F194: 8050 | G194: 7320 | H194: 6315 | J194: TRUE | K194: TRUE | L194: TRUE | M194: TRUE | N194: TRUE | O194: TRUE
A195: 62 | C195: 12911 | D195: 11739 | E195: 10457 | F195: 8421 | G195: 7652 | H195: 6607 | J195: TRUE | K195: TRUE | L195: TRUE | M195: TRUE | N195: TRUE | O195: TRUE
A196: 63 | C196: 13570 | D196: 12334 | E196: 11015 | F196: 8848 | G196: 8043 | H196: 6945 | J196: TRUE | K196: TRUE | L196: TRUE | M196: TRUE | N196: TRUE | O196: TRUE
A197: 64 | C197: 14348 | D197: 13045 | E197: 11648 | F197: 9367 | G197: 8514 | H197: 7345 | J197: TRUE | K197: TRUE | L197: TRUE | M197: TRUE | N197: TRUE | O197: TRUE
A198: 65 | C198: 15289 | D198: 13902 | E198: 12521 | F198: 10026 | G198: 9112 | H198: 7863 | J198: TRUE | K198: TRUE | L198: TRUE | M198: TRUE | N198: TRUE | O198: TRUE
A199: 66 | C199: 16385 | D199: 14899 | E199: 13537 | F199: 10790 | G199: 9809 | H199: 8461 | J199: TRUE | K199: TRUE | L199: TRUE | M199: TRUE | N199: TRUE | O199: TRUE
A200: 67 | C200: 17705 | D200: 16093 | E200: 14644 | F200: 11662 | G200: 10604 | H200: 9138 | J200: TRUE | K200: TRUE | L200: TRUE | M200: TRUE | N200: TRUE | O200: TRUE
A201: 68 | C201: 19197 | D201: 17451 | E201: 15896 | F201: 12644 | G201: 11493 | H201: 9914 | J201: TRUE | K201: TRUE | L201: TRUE | M201: TRUE | N201: TRUE | O201: TRUE
A202: 69 | C202: 20960 | D202: 19054 | E202: 17363 | F202: 13813 | G202: 12557 | H202: 10834 | J202: TRUE | K202: TRUE | L202: TRUE | M202: TRUE | N202: TRUE | O202: TRUE
A203: 70 | C203: 22988 | D203: 20898 | E203: 19155 | F203: 15271 | G203: 13883 | H203: 11965 | J203: TRUE | K203: TRUE | L203: TRUE | M203: TRUE | N203: TRUE | O203: TRUE
... 515 more rows
